lending/lending_fUSD_20260124
["ID","MTS","AMOUNT","RATE_DAILY","PERIOD"]
[403191937,1769261446959,-500.0,0.00017973,2]
[403191938,1769261446969,-500.0,0.00017973,2]
[403191939,1769261446978,-500.0,0.00017973,2]
[403191940,1769261446988,-778.0,0.00017973,2]
[403191941,1769261446998,-410.92119628,0.00017973,2]
[403191942,1769261447013,-500.0,0.00017973,2]
[403191943,1769261447023,-150.0,0.00017973,2]
[403191944,1769261447033,-1000.0,0.00017977,2]
[403191945,1769261447043,-500.0,0.00017982,2]
[403191946,1769261447053,-150.0,0.00017984,2]
[403191947,1769261447063,-240.03,0.00017985,2]
[403191948,1769261447073,-1000.0,0.00017988,2]
[403191949,1769261447085,-1123.82271307,0.0001799,3]
[403191950,1769261447094,-150.0,0.0001799,2]
[403191951,1769261447103,-857.10560289,0.0001799,2]
[403191952,1769261447113,-857.10560289,0.0001799,2]
[403191953,1769261447122,-5800.0,0.00017992,2]
[403191954,1769261447131,-1000.0,0.00017993,2]
[403191955,1769261447141,-220.12,0.00017996,2]
[403191956,1769261447150,-151.0,0.00017997,2]
[403191957,1769261447159,-151.0,0.00017997,2]
[403191958,1769261447169,-249.48172896,0.00017999,2]
[403191959,1769261447179,-1008.959,0.00017999,2]
[403191960,1769261447189,-300.0,0.00017999,2]
[403191961,1769261447199,-300.0,0.00017999,2]
[403191962,1769261447209,-300.0,0.00017999,2]
[403191963,1769261447221,-300.0,0.00017999,2]
[403191964,1769261447230,-500.0,0.00017999,2]
[403191965,1769261447239,-500.0,0.00017999,2]
[403191966,1769261447249,-500.0,0.00017999,2]
[403191967,1769261447259,-500.0,0.00017999,2]
[403191968,1769261447268,-500.0,0.00017999,2]
[403191969,1769261447277,-300.0,0.00017999,2]
[403191970,1769261447287,-500.0,0.00017999,2]
[403191971,1769261447296,-500.0,0.00017999,2]
[403191972,1769261447305,-500.0,0.00017999,2]
[403191973,1769261447315,-636.91,0.00017999,2]
[403191974,1769261447324,-300.0,0.00017999,2]
[403191975,1769261447334,-300.0,0.00017999,2]
[403191976,1769261447343,-13686.32468372,0.00017999,2]
[403191977,1769261447353,-300.0,0.00017999,2]
[403191978,1769261447362,-150.64229158,0.00017999,2]
[403191979,1769261447371,-5228421.81041676,0.00018,2]
[403191980,1769261448043,-659.53743416,0.00018,2]
[403191981,1769261448055,-1503.77332105,0.00018,2]
[403191982,1769261448065,-623.85962557,0.00018,2]
[403191983,1769261448078,-4153.66860631,0.00018,2]
[403191984,1769261448089,-2786.1885218,0.00018,2]
[403191985,1769261448681,-1.7e-07,0.00018,2]
[403191986,1769261448697,-551.75042112,0.00018,2]
[403191987,1769261448708,-2584.14950502,0.00018,2]
[403191988,1769261449002,-2500.0,0.00011884,2]
[403191989,1769261449016,-151.0,0.00013698,2]
[403191990,1769261449027,-385.16460526,0.00013698,2]
[403191991,1769261449038,-197885.67901965,0.00018,2]
[403191992,1769261449064,-1243.86456691,0.00018,2]
[403191993,1769261449075,-773.11986588,0.00018,2]
[403191994,1769261449091,-925.38770862,0.00018,2]
[403191995,1769261449103,-7014.57887246,0.00018,2]
[403191996,1769261449115,-259.084,0.00018,2]
[403191997,1769261449462,-151.0,0.00015224,2]
[403191998,1769261449473,-150.27952116,0.00016371,2]
[403191999,1769261449485,-2074.6424253,0.00017388,2]
[403192000,1769261449548,-250.0,0.00017388,2]
[403192002,1769261457058,439.97797481,0.00011883,2]
[403192004,1769261482689,254.51503636,0.00011883,2]
[403192011,1769261583122,-500.0,0.00011884,2]
[403192012,1769261583154,-6205.0,0.00011884,2]
[403192016,1769261600426,186.0,0.00011883,2]
[403192017,1769261601672,362.82745233,0.00011784,2]
[403192020,1769261641402,722.32115014,0.00011784,2]
[403192022,1769261641981,-1031.81603837,0.00011884,2]
[403192023,1769261645363,-164.47203084,0.00011884,2]
[403192024,1769261646950,-250.76580485,0.00011884,2]
[403192025,1769261648414,-200.0,0.00011884,2]
[403192026,1769261649832,-275.65429742,0.00011884,2]
[403192027,1769261653337,-189.91285581,0.00011884,2]
[403192028,1769261655026,-155.03186656,0.00011884,2]
[403192029,1769261658850,-255.19206791,0.00011884,2]
[403192030,1769261661333,-175.38621614,0.00011884,2]
[403192031,1769261663958,-180.10092261,0.00011884,2]
[403192032,1769261667273,-162.96462613,0.00011884,2]
[403192033,1769261669425,-162.06320131,0.00011884,2]
[403192034,1769261670983,150.27952116,0.00011784,2]
[403192035,1769261671265,-325.69714419,0.00011884,2]
[403192036,1769261673410,-732.12055295,0.00011884,2]
[403192037,1769261676077,-454.1716,0.00011884,2]
[403192039,1769261678700,-359.86452808,0.00011884,2]
[403192040,1769261680014,1112.9359711,0.00011883,2]
[403192041,1769261680148,-221.84434696,0.00011884,2]
[403192043,1769261681575,-300.0,0.00011884,2]
[403192044,1769261683629,-697.56558262,0.00011884,2]
[403192045,1769261686730,-166.66,0.00011884,2]
[403192046,1769261688392,-258.69331905,0.00011884,2]
[403192047,1769261691155,-367.40314113,0.00011884,2]
[403192048,1769261700304,-218.34596674,0.00011884,2]
[403192049,1769261701384,300.0,0.00011883,2]
[403192050,1769261701488,1200.0,0.00011883,2]
[403192051,1769261701945,-273.0,0.00011884,2]
[403192052,1769261703422,-203.76731991,0.00011884,2]
[403192053,1769261707082,-169.65782382,0.00011884,2]
[403192054,1769261709765,-321.55787541,0.00011884,2]
[403192055,1769261712711,-161.37818768,0.00011884,2]
[403192056,1769261720598,-155.26686864,0.00011884,2]
[403192057,1769261723259,-177.2800995,0.00011884,2]
[403192058,1769261725531,-314.91192107,0.00011884,2]
[403192059,1769261727618,-184.0,0.00011884,2]
[403192060,1769261731915,-222.33007091,0.00011884,2]
[403192061,1769261734946,-300.0,0.00011884,2]
[403192062,1769261737158,-159.47121487,0.00011884,2]
[403192063,1769261739666,-272.39166125,0.00011884,2]
[403192064,1769261741386,-423.79,0.00011884,2]
[403192065,1769261742917,-183.95516542,0.00011884,2]
[403192066,1769261744410,-244.04452484,0.00011884,2]
[403192068,1769261745249,241.88496822,0.00011784,2]
[403192073,1769261746479,-235.68056376,0.00011884,2]
[403192080,1769261748281,-182.59685887,0.00011884,2]
[403192081,1769261749979,-382.16196347,0.00011884,2]
[403192082,1769261752599,-210.28923888,0.00011884,2]
[403192083,1769261754132,-240.68893856,0.00011884,2]
[403192084,1769261757000,-304.44849242,0.00011884,2]
[403192086,1769261791450,-165.57403326,0.00011884,2]
[403192087,1769261793037,-248.34761799,0.00011884,2]
[403192089,1769261796265,-228.42331248,0.00011884,2]
[403192091,1769261799354,-153.49718514,0.00011884,2]
[403192092,1769261800887,-190.48406699,0.00011884,2]
[403192093,1769261803948,2480.5691386,0.00011784,2]
[403192094,1769261803971,6031.18165137,0.00011784,2]
[403192095,1769261804569,-649.34143886,0.00011884,2]
[403192096,1769261806482,-240.49128124,0.00011884,2]
[403192097,1769261808673,-295.06693158,0.00011884,2]
[403192098,1769261810745,-1058.21312216,0.00011884,2]
[403192099,1769261813515,-182.4341895,0.00011884,2]
[403192100,1769261815575,-225.52778323,0.00011884,2]
[403192101,1769261817096,-274.0,0.00011884,2]
[403192102,1769261818506,-280.7290306,0.00011884,2]
[403192103,1769261821281,300.0,0.00011883,2]
[403192104,1769261826001,-412.72971108,0.00011884,2]
[403192105,1769261828019,-639.41946431,0.00011884,2]
[403192106,1769261830569,-738.30969581,0.00011884,2]
[403192107,1769261832025,-287.61923921,0.00011884,2]
[403192108,1769261833501,-157.51314436,0.00011884,2]
[403192109,1769261834979,-170.30130963,0.00011884,2]
[403192110,1769261835019,3668.82834863,0.00011784,2]
[403192111,1769261835044,10000.01,0.00011784,2]
[403192112,1769261835068,1798.33771179,0.00011784,2]
[403192113,1769261835786,500.0,0.000176,30]
[403192114,1769261835911,500.0,0.000176,30]
[403192115,1769261837012,-288.38501587,0.00011884,2]
[403192116,1769261839650,500.0,0.000176,30]
[403192117,1769261839689,-219.58282256,0.00011884,2]
[403192118,1769261841090,-254.30682026,0.00011884,2]
[403192119,1769261841649,500.0,0.000176,30]
[403192120,1769261843194,-300.0,0.00011884,2]
[403192121,1769261844617,-260.66825846,0.00011884,2]
[403192122,1769261847274,-172.53820591,0.00011884,2]
[403192124,1769261850930,500.0,0.000176,30]
[403192125,1769261850998,-253.8859156,0.00011884,2]
[403192126,1769261854963,-193.27711953,0.00011884,2]
[403192127,1769261857117,-177.21446126,0.00011884,2]
[403192128,1769261860172,-300.0,0.00011884,2]
[403192129,1769261861924,-192.0,0.00011884,2]
[403192130,1769261863927,-233.32957957,0.00011884,2]
[403192131,1769261865850,-196.31686961,0.00011884,2]
[403192132,1769261882800,300.0,0.00011883,2]
[403192133,1769261882898,-226.62935403,0.00011884,2]
[403192135,1769261884635,-269.12598303,0.00011884,2]
[403192138,1769261885335,300.0,0.00011883,2]
[403192139,1769261887780,-191.15444854,0.00011884,2]
[403192140,1769261889374,161.25664548,0.00011784,2]
[403192141,1769261889874,-203.84201728,0.00011884,2]
[403192142,1769261893763,-166.66,0.00011884,2]
[403192143,1769261897359,-394.2525394,0.00011884,2]
[403192144,1769261899277,197.36224355,0.00011784,2]
[403192145,1769261900842,-435.52271657,0.00011884,2]
[403192146,1769261902388,-192.72668879,0.00011884,2]
[403192147,1769261904482,-409.304125,0.00011884,2]
[403192148,1769261907226,-244.80789902,0.00011884,2]
[403192149,1769261908986,-191.61455368,0.00011884,2]
[403192150,1769261910856,-299.76204081,0.00011884,2]
[403192153,1769261912237,-249.0,0.00011884,2]
[403192154,1769261913701,-226.46511723,0.00011884,2]
[403192156,1769261917153,-187.64021808,0.00011884,2]
[403192157,1769261918611,-172.95805524,0.00011884,2]
[403192162,1769261944314,300.0,0.00011883,2]
[403192163,1769261947355,191.0,0.00011765,2]
[403192164,1769261948942,300.0,0.00011781,2]
[403192165,1769261949235,300.0,0.00011836,2]
[403192166,1769261958546,447.42810367,0.00011883,2]
[403192180,1769262001566,1200.0,0.00011883,2]
[403192181,1769262001618,300.0,0.00011883,2]
[403192212,1769262033276,161.25664548,0.00011784,2]
[403192262,1769262092564,2727.092,0.00011646,2]
[403192263,1769262092691,204.388,0.00011646,2]
[403192269,1769262121305,300.0,0.00011883,2]
[403192272,1769262133824,304.42728818,0.00011784,2]
[403192276,1769262164042,161.25664548,0.00011784,2]
[403192282,1769262221302,346.20471637,0.00011784,2]
[403192283,1769262221327,10000.01,0.00011784,2]
[403192284,1769262221352,4166.93914482,0.00011784,2]
[403192285,1769262227249,5833.07085518,0.00011784,2]
[403192286,1769262227274,1889.47497996,0.00011784,2]
[403192292,1769262277640,10000.01,0.00011233,2]
[403192293,1769262277663,3009.29,0.00011233,2]
[403192294,1769262278298,-178.75890676,0.00011884,2]
[403192295,1769262279896,-178.71893,0.00011884,2]
[403192296,1769262282753,-240.25067479,0.00011884,2]
[403192297,1769262284738,-307.27331121,0.00011884,2]
[403192300,1769262301262,1200.0,0.00011883,2]
[403192304,1769262304039,313.19967256,0.00011883,2]
[403192321,1769262324667,904.982643,0.00011824,2]
[403192355,1769262362117,300.0,0.00011883,2]
[403192357,1769262363561,1544.94869218,0.00011843,2]
[403192364,1769262458145,266.37387721,0.00011784,2]
[403192366,1769262477280,253.98,0.00011863,2]
[403192370,1769262502339,457.0927966,0.00011784,2]
[403192371,1769262505881,183.91,0.00011863,2]
[403192392,1769262538355,1852.42,0.00011839,2]
[403192395,1769262562667,2723.10231845,0.0001183,2]
[403192396,1769262562690,1696.35941595,0.0001183,2]
[403192397,1769262566009,427.12,0.00011793,2]
[403192399,1769262574688,7876.53058405,0.00011784,2]
[403192400,1769262574717,10000.01,0.00011784,2]
[403192401,1769262574746,10000.01,0.00011784,2]
[403192402,1769262574773,10000.01,0.00011784,2]
[403192404,1769262602102,1200.0,0.00011783,2]
[403192491,1769262632123,-1671.51544629,0.00011784,2]
[403192492,1769262632134,-422.81516774,0.00011784,2]
[403192493,1769262632150,-3159.33507127,0.00011784,2]
[403192494,1769262632162,-610.53759736,0.00011784,2]
[403192495,1769262632173,-2518.52160099,0.00011784,2]
[403192496,1769262632184,-1827.19977447,0.00011784,2]
[403192497,1769262632212,-797.59445327,0.00011784,2]
[403192498,1769262632225,-1182.23847243,0.00011784,2]
[403192499,1769262632236,-7396.74035515,0.00011784,2]
[403192500,1769262632248,-377.31590528,0.00011784,2]
[403192501,1769262632259,-3268.61254982,0.00011784,2]
[403192502,1769262632275,-938891.01302188,0.00011784,2]
[403192504,1769262632285,-33442.75,0.00011784,2]
[403192506,1769262632294,-257.44969379,0.00011784,2]
[403192507,1769262632303,-246.0,0.00011784,2]
[403192508,1769262632312,-13061.83847508,0.00011784,2]
[403192509,1769262632322,-1000.0,0.00011884,2]
[403192510,1769262632331,-157.99542452,0.00011884,2]
[403192512,1769262632340,-186862.429039,0.00011884,2]
[403192513,1769262632349,-2423.1177595,0.00011884,2]
[403192514,1769262632358,-300.0,0.0001189,2]
[403192515,1769262632368,-300.0,0.00011945,2]
[403192516,1769262632377,-500.0,0.00011985,2]
[403192517,1769262632386,-150.0,0.0001199,2]
[403192518,1769262632395,-300.0,0.00012,2]
[403192519,1769262632405,-857.10560289,0.00012054,2]
[403192520,1769262632414,-21998.6,0.00012055,2]
[403192521,1769262632423,-15389.11,0.00012064,2]
[403192522,1769262632432,-8492.46,0.00012064,2]
[403192523,1769262632442,-150.0,0.00012089,2]
[403192524,1769262632451,-427.12,0.00012448,2]
[403192525,1769262632460,-13061.83847507,0.00012464,2]
[403192526,1769262632469,-866.27,0.00012492,2]
[403192527,1769262632478,-1384.0,0.00012504,2]
[403192528,1769262632487,-1117.0,0.00012529,2]
[403192529,1769262632496,-571.0,0.00012554,2]
[403192530,1769262632507,-166.66,0.00012561,2]
[403192531,1769262632517,-1382.0,0.00012579,2]
[403192532,1769262632526,-1349.0,0.00012604,2]
[403192533,1769262632535,-1515.0,0.00012615,2]
[403192534,1769262632544,-1081.0,0.0001264,2]
[403192535,1769262632554,-266.37387715,0.00012658,2]
[403192536,1769262632563,-1189.0,0.00012666,2]
[403192537,1769262632572,-201.0,0.00012679,2]
[403192538,1769262632581,-169.80266651,0.00012792,2]
[403192539,1769262632590,-457.09279657,0.00012803,2]
[403192541,1769262632599,-169.80266651,0.00012873,2]
[403192542,1769262632609,-3561.06,0.00012893,2]
[403192543,1769262632618,-336.01,0.00012893,2]
[403192544,1769262632627,-299.99,0.00012893,2]
[403192545,1769262632636,-48278.97,0.00012893,2]
[403192546,1769262632645,-463.76,0.00012893,2]
[403192547,1769262632654,-3272.88,0.00012893,2]
[403192548,1769262632663,-2904.77,0.00012893,2]
[403192549,1769262632673,-9999.99,0.00012893,2]
[403192550,1769262632682,-9999.99,0.00012893,2]
[403192551,1769262632691,-6781.06,0.00012893,2]
[403192552,1769262632700,-5476.85,0.00012893,2]
[403192553,1769262632710,-150.99,0.00012893,2]
[403192554,1769262632719,-1680.0,0.00012961,2]
[403192555,1769262632728,-500.0,0.00012962,2]
[403192556,1769262632738,-250.0,0.00012962,2]
[403192557,1769262632747,-300.0,0.00012962,2]
[403192558,1769262632756,-166.66,0.00012976,2]
[403192559,1769262632765,-150.0,0.00013,2]
[403192560,1769262632774,-500.0,0.00013,2]
[403192561,1769262632784,-1873.73,0.00013065,2]
[403192562,1769262632793,-250.0,0.00013072,2]
[403192563,1769262632802,-500.0,0.00013072,2]
[403192564,1769262632812,-300.0,0.00013072,2]
[403192565,1769262632822,-427.12,0.00013103,2]
[403192566,1769262632831,-169.80266651,0.00013117,2]
[403192567,1769262632840,-23247.65831045,0.00013125,2]
[403192569,1769262633634,-658.23230958,0.00013125,2]
[403192570,1769262633645,-371.3259998,0.00013125,2]
[403192571,1769262633675,-2170.0,0.00013125,2]
[403192575,1769262638297,-3342.46626735,0.00013125,2]
[403192576,1769262638336,-787.36629238,0.00013125,2]
[403192577,1769262638538,-20556.26312643,0.00013125,2]
[403192578,1769262638551,-754.07848955,0.00013125,2]
[403192584,1769262641276,-1.7e-07,0.00013125,2]
[403192585,1769262641288,-11832.38440721,0.00013125,2]
[403192586,1769262641397,-626.36847836,0.00013125,2]
[403192587,1769262641408,-13444.87366793,0.00013125,2]
[403192588,1769262641419,-19138.23941,0.00013125,2]
[403192589,1769262641430,-2447.56425142,0.00013125,2]
[403192590,1769262641442,-369.0,0.00013125,2]
[403192591,1769262641584,-327.99999999,0.00013125,2]
[403192592,1769262641595,-9100.0,0.00013125,2]
[403192593,1769262641652,-1119.9698822,0.00013125,2]
[403192594,1769262641706,-5653.74009664,0.00013125,2]
[403192595,1769262641745,-70914.89804954,0.00013125,2]
[403192596,1769262641754,-13061.83847507,0.00013143,2]
[403192597,1769262641763,-500.0,0.00013236,2]
[403192598,1769262641773,-3564.19,0.00013328,2]
[403192599,1769262641782,-500.0,0.00013365,2]
[403192600,1769262641791,-166.66,0.00013391,2]
[403192601,1769262641800,-2923.02,0.00013425,2]
[403192602,1769262641809,-398.32,0.00013431,2]
[403192603,1769262641818,-183.59,0.00013431,2]
[403192604,1769262641828,-233.57,0.00013449,2]
[403192605,1769262641837,-151.0,0.00013479,2]
[403192606,1769262641847,-2423.1177595,0.00013481,2]
[403192607,1769262641857,-9351.13,0.00013482,2]
[403192608,1769262641867,-500.0,0.0001351,2]
[403192609,1769262641876,-169.80266651,0.00013524,2]
[403192610,1769262641885,-266.37387715,0.00013531,2]
[403192611,1769262641895,-500.0,0.00013698,2]
[403192612,1769262641904,-500.0,0.00013698,2]
[403192613,1769262641913,-500.0,0.00013698,2]
[403192614,1769262641923,-500.0,0.00013698,2]
[403192615,1769262641932,-500.0,0.00013698,2]
[403192616,1769262641941,-500.0,0.00013698,2]
[403192617,1769262641950,-501.14381708,0.00013698,2]
[403192618,1769262641959,-500.0,0.00013698,2]
[403192619,1769262641968,-510.98377513,0.00013698,2]
[403192620,1769262641977,-500.0,0.00013698,2]
[403192621,1769262641987,-500.0,0.00013698,2]
[403192622,1769262641996,-500.0,0.00013698,2]
[403192623,1769262642005,-500.0,0.00013698,2]
[403192624,1769262642014,-500.0,0.00013698,2]
[403192625,1769262642023,-500.0,0.00013698,2]
[403192626,1769262642035,-513.68541825,0.00013698,2]
[403192627,1769262642045,-500.0,0.00013698,2]
[403192628,1769262642055,-500.0,0.00013698,2]
[403192629,1769262642064,-500.0,0.00013698,2]
[403192630,1769262642074,-500.0,0.00013698,2]
[403192631,1769262642083,-500.0,0.00013698,2]
[403192632,1769262642092,-500.0,0.00013698,2]
[403192633,1769262642102,-500.0,0.00013698,2]
[403192634,1769262642111,-500.0,0.00013698,2]
[403192635,1769262642120,-500.0,0.00013698,2]
[403192636,1769262642130,-500.0,0.00013698,2]
[403192637,1769262642140,-500.0,0.00013698,2]
[403192638,1769262642149,-512.6608624,0.00013698,2]
[403192639,1769262642158,-500.0,0.00013698,2]
[403192640,1769262642168,-500.0,0.00013698,2]
[403192641,1769262642177,-500.0,0.00013698,2]
[403192642,1769262642186,-500.0,0.00013698,2]
[403192643,1769262642198,-500.0,0.00013698,2]
[403192644,1769262642208,-500.0,0.00013698,2]
[403192645,1769262642218,-500.0,0.00013698,2]
[403192646,1769262642228,-500.0,0.00013698,2]
[403192647,1769262642238,-500.0,0.00013698,2]
[403192648,1769262642247,-500.0,0.00013698,2]
[403192649,1769262642257,-500.0,0.00013698,2]
[403192650,1769262642267,-500.0,0.00013698,2]
[403192651,1769262642276,-1012.28,0.00013698,2]
[403192652,1769262642285,-171.84070592,0.00013699,3]
[403192653,1769262642295,-150.07696773,0.00013699,3]
[403192654,1769262642304,-250.0,0.00013699,2]
[403192655,1769262642314,-250.0,0.00013699,2]
[403192656,1769262642323,-250.0,0.00013699,2]
[403192657,1769262642333,-250.0,0.00013699,2]
[403192658,1769262642342,-250.0,0.00013699,2]
[403192659,1769262642352,-250.0,0.00013699,2]
[403192660,1769262642361,-250.0,0.00013699,2]
[403192661,1769262642371,-250.0,0.00013699,2]
[403192662,1769262642380,-250.0,0.00013699,2]
[403192663,1769262642390,-250.0,0.00013699,2]
[403192664,1769262642400,-250.0,0.00013699,2]
[403192665,1769262642409,-274.311997,0.00013699,2]
[403192666,1769262642419,-427.12,0.00013758,2]
[403192667,1769262642428,-516.33940849,0.00013784,2]
[403192668,1769262642437,-166.66,0.00013805,2]
[403192669,1769262642446,-457.09279657,0.00013823,2]
[403192670,1769262642456,-13061.83847507,0.00013823,2]
[403192671,1769262642466,-4077.14404213,0.00013843,2]
[403192672,1769262642475,-578.20924308,0.00013864,2]
[403192673,1769262642486,-721.12765535,0.00013864,2]
[403192674,1769262642495,-9552.16786547,0.00013864,2]
[403192675,1769262642505,-151.0,0.00013864,2]
[403192676,1769262642519,-500.0,0.00013864,2]
[403192677,1769262642528,-500.0,0.00013864,2]
[403192678,1769262642538,-500.0,0.00013864,2]
[403192679,1769262642547,-500.0,0.00013864,2]
[403192680,1769262642557,-500.0,0.00013864,2]
[403192681,1769262642566,-500.0,0.00013864,2]
[403192682,1769262642576,-500.0,0.00013864,2]
[403192683,1769262642585,-500.0,0.00013864,2]
[403192684,1769262642594,-500.0,0.00013864,2]
[403192685,1769262642604,-500.0,0.00013864,2]
[403192686,1769262642613,-500.0,0.00013864,2]
[403192687,1769262642623,-500.0,0.00013864,2]
[403192688,1769262642632,-500.0,0.00013864,2]
[403192689,1769262642641,-500.0,0.00013864,2]
[403192690,1769262642650,-500.0,0.00013864,2]
[403192691,1769262642660,-500.0,0.00013864,2]
[403192692,1769262642669,-500.0,0.00013864,2]
[403192693,1769262642678,-500.0,0.00013864,2]
[403192694,1769262642688,-500.0,0.00013864,2]
[403192695,1769262642697,-500.0,0.00013864,2]
[403192696,1769262642706,-500.0,0.00013864,2]
[403192697,1769262642716,-250.0,0.00013864,2]
[403192698,1769262642725,-500.0,0.00013864,2]
[403192699,1769262642735,-322.6107,0.00013864,2]
[403192700,1769262642744,-250.0,0.00013864,2]
[403192701,1769262642753,-250.0,0.00013864,2]
[403192702,1769262642763,-250.0,0.00013864,2]
[403192703,1769262642772,-250.0,0.00013864,2]
[403192704,1769262642781,-250.0,0.00013864,2]
[403192705,1769262642790,-250.0,0.00013864,2]
[403192706,1769262642800,-250.0,0.00013864,2]
[403192707,1769262642809,-250.0,0.00013864,2]
[403192708,1769262642818,-250.0,0.00013864,2]
[403192709,1769262642827,-250.0,0.00013864,2]
[403192710,1769262642836,-743.50770149,0.00013864,2]
[403192711,1769262642845,-250.0,0.00013864,2]
[403192712,1769262642855,-250.0,0.00013864,2]
[403192713,1769262642864,-250.0,0.00013864,2]
[403192714,1769262642874,-250.0,0.00013864,2]
[403192715,1769262642883,-174.61919141,0.00013864,2]
[403192716,1769262642893,-250.0,0.00013864,2]
[403192717,1769262642902,-250.0,0.00013864,2]
[403192719,1769262642911,-250.0,0.00013864,2]
[403192720,1769262642921,-854.2589148,0.00013864,2]
[403192723,1769262642931,-250.0,0.00013864,2]
[403192727,1769262642941,-9000.0,0.00013864,2]
[403192730,1769262642950,-288.31990463,0.00013864,2]
[403192731,1769262642961,-500.0,0.00013864,2]
[403192733,1769262642971,-500.0,0.00013864,2]
[403192735,1769262642981,-500.0,0.00013864,2]
[403192736,1769262642990,-6403.27410895,0.00013864,2]
[403192737,1769262643000,-151.0,0.00013864,2]
[403192738,1769262643010,-500.0,0.00013864,2]
[403192739,1769262643020,-151.0,0.00013864,2]
[403192740,1769262643031,-500.0,0.00013864,2]
[403192741,1769262643041,-151.0,0.00013864,2]
[403192742,1769262643051,-250.0,0.00013864,2]
[403192743,1769262643060,-500.0,0.00013864,2]
[403192744,1769262643069,-172.48891574,0.00013864,2]
[403192745,1769262643080,-151.0,0.00013864,2]
[403192747,1769262643089,-250.0,0.00013864,2]
[403192749,1769262643098,-500.0,0.00013864,2]
[403192750,1769262643108,-151.0,0.00013864,2]
[403192751,1769262643117,-250.0,0.00013864,2]
[403192752,1769262643126,-500.0,0.00013864,2]
[403192754,1769262643135,-151.0,0.00013864,2]
[403192755,1769262643144,-250.0,0.00013864,2]
[403192757,1769262643154,-500.0,0.00013864,2]
[403192759,1769262643163,-151.0,0.00013864,2]
[403192762,1769262643173,-250.0,0.00013864,2]
[403192766,1769262643183,-500.0,0.00013864,2]
[403192768,1769262643192,-151.0,0.00013864,2]
[403192770,1769262643202,-250.0,0.00013864,2]
[403192771,1769262643211,-151.0,0.00013864,2]
[403192773,1769262643221,-250.0,0.00013864,2]
[403192775,1769262643230,-250.0,0.00013864,2]
[403192777,1769262643241,-500.0,0.00013864,2]
[403192779,1769262643251,-151.0,0.00013864,2]
[403192780,1769262643260,-250.0,0.00013864,2]
[403192781,1769262643271,-250.0,0.00013864,2]
[403192782,1769262643280,-151.0,0.00013864,2]
[403192783,1769262643289,-250.0,0.00013864,2]
[403192784,1769262643300,-250.0,0.00013864,2]
[403192785,1769262643310,-250.0,0.00013864,2]
[403192786,1769262643319,-250.0,0.00013864,2]
[403192787,1769262643330,-250.0,0.00013864,2]
[403192788,1769262643339,-250.0,0.00013864,2]
[403192789,1769262643348,-276.40674304,0.00013864,2]
[403192790,1769262643359,-500.0,0.00013864,2]
[403192791,1769262643368,-500.0,0.00013864,2]
[403192792,1769262643377,-500.0,0.00013864,2]
[403192793,1769262643386,-500.0,0.00013864,2]
[403192794,1769262643396,-500.0,0.00013864,2]
[403192795,1769262643406,-500.0,0.00013864,2]
[403192796,1769262643415,-500.0,0.00013864,2]
[403192797,1769262643424,-500.0,0.00013864,2]
[403192798,1769262643433,-500.0,0.00013864,2]
[403192799,1769262643442,-250.0,0.00013864,2]
[403192800,1769262643451,-500.0,0.00013864,2]
[403192801,1769262643461,-250.0,0.00013864,2]
[403192802,1769262643470,-500.0,0.00013864,2]
[403192803,1769262643479,-250.0,0.00013864,2]